fUSD/lending_fUSD_20250823
["ID","MTS","AMOUNT","RATE_DAILY","PERIOD"]
[380954767,1755912721561,-577.68,0.00015342,2]
[380954768,1755912721571,-446.17,0.00015342,2]
[380954769,1755912721581,-499.75,0.00015342,2]
[380954770,1755912721591,-543.86,0.00015342,2]
[380954771,1755912721601,-707.33,0.00015342,2]
[380954772,1755912721611,-752.86,0.00015342,2]
[380954773,1755912721621,-475.34,0.00015342,2]
[380954774,1755912721631,-602.1,0.00015342,2]
[380954775,1755912721641,-400.0,0.00015342,2]
[380954776,1755912721651,-496.62,0.00015342,2]
[380954777,1755912721661,-480.32,0.00015342,2]
[380954778,1755912721672,-400.0,0.00015342,2]
[380954779,1755912721682,-400.0,0.00015342,2]
[380954780,1755912721692,-400.0,0.00015342,2]
[380954781,1755912721703,-400.0,0.00015342,2]
[380954782,1755912721715,-633.62,0.00015342,2]
[380954783,1755912721726,-400.0,0.00015342,2]
[380954784,1755912721737,-400.0,0.00015342,2]
[380954785,1755912721753,-400.0,0.00015342,2]
[380954786,1755912721764,-400.0,0.00015342,2]
[380954787,1755912721775,-289.7,0.00015342,2]
[380954788,1755912721785,-560.58,0.00015342,2]
[380954789,1755912721797,-614.22,0.00015342,2]
[380954790,1755912721807,-400.0,0.00015342,2]
[380954791,1755912721817,-428.79,0.00015342,2]
[380954792,1755912721828,-416.01,0.00015342,2]
[380954793,1755912721838,-400.0,0.00015342,2]
[380954794,1755912721849,-400.0,0.00015342,2]
[380954795,1755912721860,-425.3,0.00015342,2]
[380954796,1755912721871,-400.0,0.00015342,2]
[380954797,1755912721882,-400.0,0.00015342,2]
[380954798,1755912721892,-508.68,0.00015342,2]
[380954799,1755912721902,-535.36,0.00015342,2]
[380954800,1755912721912,-400.0,0.00015342,2]
[380954801,1755912721922,-193.17723,0.00015342,2]
[380954802,1755912721932,-255.10663186,0.00015342,2]
[380954803,1755912721943,-470.91,0.00015342,2]
[380954804,1755912721953,-418.5,0.00015342,2]
[380954805,1755912721966,-400.0,0.00015342,2]
[380954806,1755912721976,-400.0,0.00015342,2]
[380954807,1755912721987,-747.8,0.00015342,2]
[380954808,1755912721998,-400.0,0.00015342,2]
[380954809,1755912722008,-433.94,0.00015342,2]
[380954810,1755912722019,-400.0,0.00015342,2]
[380954811,1755912722029,-400.0,0.00015342,2]
[380954812,1755912722040,-400.0,0.00015342,2]
[380954813,1755912722051,-400.0,0.00015342,2]
[380954814,1755912722061,-472.48,0.00015342,2]
[380954815,1755912722071,-1000.0,0.00015342,2]
[380954816,1755912722081,-400.0,0.00015342,2]
[380954817,1755912722092,-400.0,0.00015342,2]
[380954818,1755912722102,-855.010025,0.00015342,2]
[380954819,1755912722112,-400.0,0.00015342,2]
[380954820,1755912722122,-400.0,0.00015342,2]
[380954821,1755912722132,-400.0,0.00015342,2]
[380954822,1755912722147,-151.0,0.00015342,2]
[380954823,1755912722158,-631.75,0.00015342,2]
[380954824,1755912722168,-400.0,0.00015342,2]
[380954825,1755912722178,-400.0,0.00015342,2]
[380954826,1755912722189,-400.0,0.00015342,2]
[380954827,1755912722199,-400.0,0.00015342,2]
[380954828,1755912722213,-479.25,0.00015342,2]
[380954829,1755912722224,-737.35,0.00015342,2]
[380954830,1755912722235,-473.06,0.00015342,2]
[380954831,1755912722246,-400.0,0.00015342,2]
[380954832,1755912722256,-400.0,0.00015342,2]
[380954833,1755912722266,-464.53,0.00015342,2]
[380954834,1755912722277,-400.0,0.00015342,2]
[380954835,1755912722288,-400.0,0.00015342,2]
[380954836,1755912722301,-451.38,0.00015342,2]
[380954837,1755912722313,-605.41,0.00015342,2]
[380954838,1755912722323,-763.68,0.00015342,2]
[380954839,1755912722334,-400.0,0.00015342,2]
[380954840,1755912722345,-400.0,0.00015342,2]
[380954841,1755912722355,-400.0,0.00015342,2]
[380954842,1755912722365,-400.0,0.00015342,2]
[380954843,1755912722379,-400.0,0.00015342,2]
[380954844,1755912722390,-400.0,0.00015342,2]
[380954845,1755912722401,-437.52,0.00015342,2]
[380954846,1755912722411,-496.31,0.00015342,2]
[380954847,1755912722423,-151.0,0.00015342,2]
[380954848,1755912722433,-400.0,0.00015342,2]
[380954849,1755912722443,-400.0,0.00015342,2]
[380954850,1755912722453,-400.0,0.00015342,2]
[380954851,1755912722470,-1076.1,0.00015342,2]
[380954852,1755912722480,-517.63,0.00015342,2]
[380954853,1755912722490,-400.0,0.00015342,2]
[380954854,1755912722500,-531.82,0.00015342,2]
[380954855,1755912722510,-400.0,0.00015342,2]
[380954856,1755912722520,-400.0,0.00015342,2]
[380954857,1755912722531,-538.24,0.00015342,2]
[380954858,1755912722541,-599.57,0.00015342,2]
[380954859,1755912722551,-400.0,0.00015342,2]
[380954860,1755912722561,-578.64,0.00015342,2]
[380954861,1755912722571,-400.0,0.00015342,2]
[380954862,1755912722581,-481.87,0.00015342,2]
[380954863,1755912722590,-876.45,0.00015342,2]
[380954864,1755912722600,-400.0,0.00015342,2]
[380954865,1755912722612,-596.46,0.00015342,2]
[380954866,1755912722622,-151.0,0.00015342,2]
[380954867,1755912722631,-400.0,0.00015342,2]
[380954868,1755912722641,-750.69,0.00015342,2]
[380954869,1755912722651,-400.0,0.00015342,2]
[380954870,1755912722662,-483.91,0.00015342,2]
[380954871,1755912722681,-400.0,0.00015342,2]
[380954872,1755912722701,-429.94,0.00015342,2]
[380954873,1755912722723,-2560.03,0.00015342,2]
[380954874,1755912722733,-400.0,0.00015342,2]
[380954875,1755912722743,-583.44,0.00015342,2]
[380954876,1755912722753,-400.0,0.00015342,2]
[380954877,1755912722763,-511.98,0.00015342,2]
[380954878,1755912722773,-412.65,0.00015342,2]
[380954879,1755912722783,-400.0,0.00015342,2]
[380954880,1755912722793,-714.55,0.00015342,2]
[380954881,1755912722803,-400.0,0.00015342,2]
[380954882,1755912722813,-466.47,0.00015342,2]
[380954883,1755912722823,-400.0,0.00015342,2]
[380954884,1755912722833,-789.4,0.00015342,2]
[380954885,1755912722842,-483.0,0.00015342,2]
[380954886,1755912722852,-638.96,0.00015342,2]
[380954887,1755912722862,-626.45,0.00015342,2]
[380954888,1755912722872,-411.07,0.00015342,2]
[380954889,1755912722881,-400.0,0.00015342,2]
[380954890,1755912722891,-459.86,0.00015342,2]
[380954891,1755912722901,-590.56,0.00015342,2]
[380954892,1755912722910,-7170.55,0.00015342,2]
[380954893,1755912722920,-399.9,0.00015342,2]
[380954894,1755912722929,-400.0,0.00015342,2]
[380954895,1755912722940,-798.6,0.00015342,2]
[380954896,1755912722950,-489.74,0.00015342,2]
[380954897,1755912722961,-414.4,0.00015342,2]
[380954898,1755912722971,-755.36,0.00015342,2]
[380954899,1755912722980,-400.0,0.00015342,2]
[380954900,1755912722990,-358.85,0.00015342,2]
[380954901,1755912723000,-2114.53,0.00015342,2]
[380954902,1755912723010,-400.0,0.00015342,2]
[380954903,1755912723021,-556.35,0.00015342,2]
[380954904,1755912723031,-522.88,0.00015342,2]
[380954905,1755912723040,-525.17062327,0.00015342,2]
[380954906,1755912723051,-400.0,0.00015342,2]
[380954907,1755912723061,-400.0,0.00015342,2]
[380954908,1755912723072,-400.0,0.00015342,2]
[380954909,1755912723082,-2594.59,0.00015342,2]
[380954910,1755912723092,-400.0,0.00015342,2]
[380954911,1755912723107,-446.5,0.00015342,2]
[380954912,1755912723122,-529.92,0.00015342,2]
[380954913,1755912723132,-705.67,0.00015342,2]
[380954914,1755912723143,-896.87,0.00015342,2]
[380954915,1755912723153,-400.0,0.00015342,2]
[380954916,1755912723163,-1094.77,0.00015342,2]
[380954917,1755912723174,-741.74,0.00015342,2]
[380954918,1755912723184,-400.0,0.00015342,2]
[380954919,1755912723194,-869.76,0.00015342,2]
[380954920,1755912723204,-418.69,0.00015342,2]
[380954921,1755912723216,-400.0,0.00015342,2]
[380954922,1755912723226,-400.0,0.00015342,2]
[380954923,1755912723237,-437.77,0.00015342,2]
[380954924,1755912723247,-562.13,0.00015342,2]
[380954925,1755912723257,-1048.91,0.00015342,2]
[380954926,1755912723267,-541.27,0.00015342,2]
[380954927,1755912723277,-723.99,0.00015342,2]
[380954928,1755912723287,-400.0,0.00015342,2]
[380954929,1755912723297,-400.0,0.00015342,2]
[380954930,1755912723307,-614.11,0.00015342,2]
[380954931,1755912723317,-4903.23,0.00015342,2]
[380954932,1755912723568,-400.0,0.00015342,2]
[380954933,1755912723577,-963.36,0.00015342,2]
[380954934,1755912723587,-685.08,0.00015342,2]
[380954935,1755912723597,-400.0,0.00015342,2]
[380954936,1755912723606,-508.77,0.00015342,2]
[380954937,1755912723616,-530.85,0.00015342,2]
[380954938,1755912723626,-956.53,0.00015342,2]
[380954939,1755912723635,-400.0,0.00015342,2]
[380954940,1755912723645,-400.0,0.00015342,2]
[380954941,1755912723654,-690.94,0.00015342,2]
[380954942,1755912723664,-781.78,0.00015342,2]
[380954943,1755912723673,-400.0,0.00015342,2]
[380954944,1755912723683,-516.0,0.00015342,2]
[380954945,1755912723692,-400.0,0.00015342,2]
[380954946,1755912723702,-407.82,0.00015342,2]
[380954947,1755912723713,-400.0,0.00015342,2]
[380954948,1755912723723,-573.49,0.00015342,2]
[380954949,1755912723735,-400.0,0.00015342,2]
[380954950,1755912723746,-2566.25,0.00015342,2]
[380954951,1755912723756,-400.0,0.00015342,2]
[380954952,1755912723767,-400.0,0.00015342,2]
[380954953,1755912723778,-548.91,0.00015342,2]
[380954954,1755912723788,-400.0,0.00015342,2]
[380954955,1755912723797,-468.96,0.00015342,2]
[380954956,1755912723806,-1155.0,0.00015342,2]
[380954957,1755912723816,-947.84,0.00015342,2]
[380954958,1755912723825,-400.0,0.00015342,2]
[380954959,1755912723834,-1053.52,0.00015342,2]
[380954960,1755912723844,-659.68,0.00015342,2]
[380954961,1755912723854,-691.7,0.00015342,2]
[380954962,1755912723864,-719.87,0.00015342,2]
[380954963,1755912723874,-557.81,0.00015342,2]
[380954964,1755912723884,-1327.17,0.00015342,2]
[380954965,1755912723893,-621.05,0.00015342,2]
[380954966,1755912723903,-506.64683589,0.00015342,2]
[380954967,1755912723913,-532.88,0.00015342,2]
[380954968,1755912723922,-400.0,0.00015342,2]
[380954969,1755912723935,-811.77,0.00015342,2]
[380954970,1755912723945,-482.24,0.00015342,2]
[380954971,1755912723955,-786.36,0.00015342,2]
[380954972,1755912723967,-825.64,0.00015342,2]
[380954973,1755912723977,-448.05,0.00015342,2]
[380954974,1755912723987,-400.0,0.00015342,2]
[380954975,1755912723997,-508.4,0.00015342,2]
[380954976,1755912724007,-400.0,0.00015342,2]
[380954977,1755912724017,-340.74,0.00015342,2]
[380954978,1755912724028,-1160.25,0.00015342,2]
[380954979,1755912724038,-471.12,0.00015342,2]
[380954980,1755912724048,-522.09,0.00015342,2]
[380954981,1755912724058,-478.08,0.00015342,2]
[380954982,1755912724068,-400.0,0.00015342,2]
[380954983,1755912724078,-400.0,0.00015342,2]
[380954984,1755912724087,-413.45,0.00015342,2]
[380954985,1755912724097,-1658.24,0.00015342,2]
[380954986,1755912724107,-400.01,0.00015342,2]
[380954987,1755912724116,-876.0,0.00015342,2]
[380954988,1755912724126,-928.99,0.00015342,2]
[380954989,1755912724136,-1082.57,0.00015342,2]
[380954990,1755912724145,-535.34,0.00015342,2]
[380954991,1755912724155,-400.0,0.00015342,2]
[380954992,1755912724166,-599.68,0.00015342,2]
[380954993,1755912724175,-581.91,0.00015342,2]
[380954994,1755912724185,-576.13,0.00015342,2]
[380954995,1755912724195,-808.82,0.00015342,2]
[380954996,1755912724206,-704.93,0.00015342,2]
[380954997,1755912724217,-629.77,0.00015342,2]
[380954998,1755912724227,-677.9,0.00015342,2]
[380954999,1755912724236,-458.74,0.00015342,2]
[380955000,1755912724246,-909.17,0.00015342,2]
[380955001,1755912724256,-757.81,0.00015342,2]
[380955002,1755912724266,-400.0,0.00015342,2]
[380955003,1755912724276,-1628.12,0.00015342,2]
[380955004,1755912724285,-412.49,0.00015342,2]
[380955005,1755912724295,-292.36089501,0.00015342,2]
[380955006,1755912724305,-562.56,0.00015342,2]
[380955007,1755912724315,-400.0,0.00015342,2]
[380955008,1755912724324,-556.37,0.00015342,2]
[380955009,1755912724333,-901.46,0.00015342,2]
[380955010,1755912724343,-554.4,0.00015342,2]
[380955011,1755912724354,-699.23,0.00015342,2]
[380955012,1755912724366,-442.39,0.00015342,2]
[380955013,1755912724380,-627.55,0.00015342,2]
[380955014,1755912724396,-400.0,0.00015342,2]
[380955015,1755912724410,-475.41,0.00015342,2]
[380955016,1755912724420,-493.66,0.00015342,2]
[380955017,1755912724430,-400.0,0.00015342,2]
[380955018,1755912724440,-618.33,0.00015342,2]
[380955019,1755912724449,-400.0,0.00015342,2]
[380955020,1755912724460,-400.0,0.00015342,2]
[380955021,1755912724470,-159.70592859,0.00015342,2]
[380955022,1755912724479,-1043.76,0.00015342,2]
[380955023,1755912724489,-400.0,0.00015342,2]
[380955024,1755912724499,-400.0,0.00015342,2]
[380955025,1755912724509,-415.82,0.00015342,2]
[380955026,1755912724519,-491.94,0.00015342,2]
[380955027,1755912724528,-682.29,0.00015342,2]
[380955028,1755912724537,-400.0,0.00015342,2]
[380955029,1755912724546,-427.73,0.00015342,2]
[380955030,1755912724556,-501.87,0.00015342,2]
[380955031,1755912724565,-537.21,0.00015342,2]
[380955032,1755912724575,-468.97,0.00015342,2]
[380955033,1755912724585,-640.17,0.00015342,2]
[380955034,1755912724594,-568.93,0.00015342,2]
[380955035,1755912724603,-577.38,0.00015342,2]
[380955036,1755912724613,-620.18,0.00015342,2]
[380955037,1755912724622,-150.0,0.00015342,2]
[380955038,1755912724632,-1005.26,0.00015342,2]
[380955039,1755912724642,-457.02,0.00015342,2]
[380955040,1755912724652,-400.0,0.00015342,2]
[380955041,1755912724662,-773.99,0.00015342,2]
[380955042,1755912724672,-933.58,0.00015342,2]
[380955043,1755912724682,-400.0,0.00015342,2]
[380955044,1755912724691,-400.0,0.00015342,2]
[380955045,1755912724701,-400.0,0.00015342,2]
[380955046,1755912724711,-400.0,0.00015342,2]
[380955047,1755912724721,-400.0,0.00015342,2]
[380955048,1755912724732,-610.39,0.00015342,2]
[380955049,1755912724742,-400.0,0.00015342,2]
[380955050,1755912724752,-407.11,0.00015342,2]
[380955051,1755912724761,-646.19,0.00015342,2]
[380955052,1755912724771,-431.04,0.00015342,2]
[380955053,1755912724781,-605.05,0.00015342,2]
[380955054,1755912724791,-400.0,0.00015342,2]
[380955055,1755912724801,-164.46,0.00015342,2]
[380955056,1755912724811,-500.0,0.00015342,2]
[380955057,1755912724821,-938.83,0.00015342,2]
[380955058,1755912724832,-400.0,0.00015342,2]
[380955059,1755912724842,-490.42,0.00015342,2]
[380955060,1755912724853,-664.71,0.00015342,2]
[380955061,1755912724862,-546.05,0.00015342,2]
[380955062,1755912724872,-1367.0,0.00015342,2]
[380955063,1755912724886,-1070.54,0.00015342,2]
[380955064,1755912724896,-410.97,0.00015342,2]
[380955065,1755912724906,-570.73,0.00015342,2]
[380955066,1755912724916,-665.32,0.00015342,2]
[380955067,1755912724926,-716.24,0.00015342,2]
[380955068,1755912724936,-400.0,0.00015342,2]
[380955069,1755912724946,-150.0,0.00015342,2]
[380955070,1755912724956,-400.0,0.00015342,2]
[380955071,1755912724967,-697.95,0.00015342,2]
[380955072,1755912724977,-731.6,0.00015342,2]
[380955073,1755912724986,-400.0,0.00015342,2]
[380955074,1755912724996,-150.0,0.00015342,2]
[380955075,1755912725006,-500.0,0.00015342,2]
[380955076,1755912725016,-509.97,0.00015342,2]
[380955077,1755912725025,-1401.51,0.00015342,2]
[380955078,1755912725036,-400.0,0.00015342,2]
[380955079,1755912725046,-500.0,0.00015342,2]
[380955080,1755912725056,-474.27,0.00015342,2]
[380955081,1755912725066,-1143.48,0.00015342,2]
[380955082,1755912725075,-400.0,0.00015342,2]
[380955083,1755912725085,-633.21,0.00015342,2]
[380955084,1755912725096,-150.0,0.00015342,2]
[380955085,1755912725106,-551.73,0.00015342,2]
[380955086,1755912725115,-1150.35,0.00015342,2]
[380955087,1755912725125,-213.18996601,0.00015342,2]
[380955088,1755912725135,-400.0,0.00015342,2]
[380955089,1755912725146,-150.0,0.00015342,2]
[380955090,1755912725159,-803.81,0.00015342,2]
[380955091,1755912725169,-150.0,0.00015342,2]
[380955092,1755912725179,-400.0,0.00015342,2]
[380955093,1755912725189,-500.0,0.00015342,2]
[380955094,1755912725199,-709.31,0.00015342,2]
[380955095,1755912725210,-518.56,0.00015342,2]
[380955096,1755912725220,-507.56,0.00015342,2]
[380955097,1755912725231,-1049.21,0.00015342,2]
[380955098,1755912725242,-400.0,0.00015342,2]
[380955099,1755912725252,-743.59,0.00015342,2]
[380955100,1755912725263,-400.0,0.00015342,2]
[380955101,1755912725273,-599.05,0.00015342,2]
[380955102,1755912725284,-870.96,0.00015342,2]
[380955103,1755912725294,-400.0,0.00015342,2]
[380955104,1755912725305,-640.94,0.00015342,2]
[380955105,1755912725316,-150.0,0.00015342,2]
[380955106,1755912725327,-878.26,0.00015342,2]
[380955107,1755912725338,-150.0,0.00015342,2]
[380955108,1755912725349,-400.0,0.00015342,2]
[380955109,1755912725360,-1743.04,0.00015342,2]
[380955110,1755912725371,-784.45,0.00015342,2]
[380955111,1755912725383,-671.68,0.00015342,2]
[380955112,1755912725393,-983.76,0.00015342,2]
[380955113,1755912725404,-538.86,0.00015342,2]
[380955114,1755912725414,-939.87,0.00015342,2]
[380955115,1755912725424,-150.0,0.00015342,2]
[380955116,1755912725434,-150.0,0.00015342,2]
[380955117,1755912725444,-150.0,0.00015342,2]
[380955118,1755912725455,-582.18,0.00015342,2]
[380955119,1755912725467,-400.0,0.00015342,2]
[380955120,1755912725478,-150.0,0.00015342,2]
[380955121,1755912725489,-150.0,0.00015342,2]
[380955122,1755912725499,-400.0,0.00015342,2]
[380955123,1755912725510,-1021.93,0.00015342,2]
[380955124,1755912725520,-839.71,0.00015342,2]
[380955125,1755912725530,-500.0,0.00015342,2]
[380955126,1755912725540,-400.0,0.00015342,2]
[380955127,1755912725550,-706.05,0.00015342,2]
[380955128,1755912725560,-500.0,0.00015342,2]
[380955129,1755912725571,-890.17,0.00015342,2]
[380955130,1755912725581,-1278.62,0.00015342,2]
[380955131,1755912725591,-150.0,0.00015342,2]
[380955132,1755912725602,-527.2,0.00015342,2]
[380955133,1755912725613,-649.66,0.00015342,2]
[380955134,1755912725623,-150.0,0.00015342,2]
[380955135,1755912725633,-400.0,0.00015342,2]
[380955136,1755912725643,-634.12,0.00015342,2]
[380955137,1755912725652,-150.0,0.00015342,2]
[380955138,1755912725662,-1099.97,0.00015342,2]
[380955139,1755912725672,-300.0,0.00015342,2]
[380955140,1755912725683,-726.51,0.00015342,2]
[380955141,1755912725693,-784.4,0.00015342,2]
[380955142,1755912725702,-754.33,0.00015342,2]
[380955143,1755912725714,-985.25,0.00015342,2]
[380955144,1755912725724,-971.12,0.00015342,2]
[380955145,1755912725734,-150.0,0.00015342,2]
[380955146,1755912725744,-500.0,0.00015342,2]
[380955147,1755912725754,-1154.79,0.00015342,2]
[380955148,1755912725763,-691.37,0.00015342,2]
[380955149,1755912725774,-500.0,0.00015342,2]
[380955150,1755912725784,-1203.18,0.00015342,2]
[380955151,1755912725794,-1157.08,0.00015342,2]
[380955152,1755912725804,-150.0,0.00015342,2]
[380955153,1755912725814,-400.0,0.00015342,2]
[380955154,1755912725825,-535.95,0.00015342,2]
[380955155,1755912725835,-888.95,0.00015342,2]
[380955156,1755912725846,-656.19,0.00015342,2]
[380955157,1755912725856,-807.2,0.00015342,2]
[380955158,1755912725866,-1439.09,0.00015342,2]
[380955159,1755912725878,-659.77,0.00015342,2]
[380955160,1755912725888,-583.57,0.00015342,2]
[380955161,1755912725899,-400.0,0.00015342,2]
[380955162,1755912725909,-890.52,0.00015342,2]
[380955163,1755912725919,-731.16,0.00015342,2]
[380955164,1755912725929,-400.0,0.00015342,2]
[380955165,1755912725939,-400.0,0.00015342,2]
[380955166,1755912725949,-635.62,0.00015342,2]
[380955167,1755912725959,-766.72,0.00015342,2]
[380955168,1755912725970,-855.77,0.00015342,2]
[380955169,1755912725980,-986.02,0.00015342,2]
[380955170,1755912725991,-963.55,0.00015342,2]
[380955171,1755912726001,-400.0,0.00015342,2]
[380955172,1755912726012,-967.68,0.00015342,2]
[380955173,1755912726022,-482.07,0.00015342,2]
[380955174,1755912726032,-400.0,0.00015342,2]
[380955175,1755912726042,-400.0,0.00015342,2]
[380955176,1755912726052,-400.0,0.00015342,2]
[380955177,1755912726063,-466.03,0.00015342,2]
[380955178,1755912726073,-859.0,0.00015342,2]
[380955179,1755912726083,-828.37,0.00015342,2]
[380955180,1755912726094,-507.72,0.00015342,2]
[380955181,1755912726104,-506.23,0.00015342,2]
[380955182,1755912726114,-1494.7,0.00015342,2]
[380955183,1755912726124,-777.58,0.00015342,2]
[380955184,1755912726135,-400.0,0.00015342,2]
[380955185,1755912726145,-400.0,0.00015342,2]
[380955186,1755912726155,-400.0,0.00015342,2]
[380955187,1755912726165,-781.12,0.00015342,2]
[380955188,1755912726176,-479.67,0.00015342,2]
[380955189,1755912726186,-937.77,0.00015342,2]
[380955190,1755912726196,-585.32,0.00015342,2]
[380955191,1755912726207,-755.98,0.00015342,2]
[380955192,1755912726218,-400.0,0.00015342,2]
[380955193,1755912726228,-941.46,0.00015342,2]
[380955194,1755912726239,-650.0,0.00015342,2]
[380955195,1755912726250,-1039.23,0.00015342,2]
[380955196,1755912726262,-400.0,0.00015342,2]
[380955197,1755912726272,-979.86,0.00015342,2]
[380955198,1755912726283,-498.14,0.00015342,2]
[380955199,1755912726294,-400.0,0.00015342,2]
[380955200,1755912726305,-545.13,0.00015342,2]
[380955201,1755912726316,-958.27,0.00015342,2]
[380955202,1755912726326,-873.74,0.00015342,2]
[380955203,1755912726337,-792.76,0.00015342,2]
[380955204,1755912726347,-903.77,0.00015342,2]
[380955205,1755912726357,-400.0,0.00015342,2]
[380955206,1755912726368,-505.4,0.00015342,2]
[380955207,1755912726380,-764.74,0.00015342,2]
[380955208,1755912726392,-400.0,0.00015342,2]
[380955209,1755912726403,-822.02,0.00015342,2]
[380955210,1755912726413,-400.0,0.00015342,2]
[380955211,1755912726424,-400.0,0.00015342,2]
[380955212,1755912726436,-400.0,0.00015342,2]
[380955213,1755912726447,-400.0,0.00015342,2]
[380955214,1755912726459,-493.69,0.00015342,2]
[380955215,1755912726478,-550.01,0.00015342,2]
[380955216,1755912726490,-400.0,0.00015342,2]
[380955217,1755912726500,-532.46,0.00015342,2]
[380955218,1755912726511,-400.0,0.00015342,2]
[380955219,1755912726521,-400.0,0.00015342,2]
[380955220,1755912726531,-957.7,0.00015342,2]
[380955221,1755912726542,-400.0,0.00015342,2]
[380955222,1755912726553,-724.98,0.00015342,2]
[380955223,1755912726563,-712.18,0.00015342,2]
[380955224,1755912726573,-3061.19,0.00015342,2]
[380955225,1755912726582,-484.95,0.00015342,2]
[380955226,1755912726593,-839.82,0.00015342,2]
[380955227,1755912726603,-400.0,0.00015342,2]
[380955228,1755912726615,-1167.85,0.00015342,2]
[380955229,1755912726626,-911.43,0.00015342,2]
[380955230,1755912726636,-400.0,0.00015342,2]
[380955231,1755912726646,-402.87,0.00015342,2]
[380955232,1755912726656,-344.25396946,0.00015342,2]
[380955233,1755912726666,-668.01,0.00015342,2]
[380955234,1755912726676,-440.73,0.00015342,2]
[380955235,1755912726687,-400.0,0.00015342,2]
[380955236,1755912726697,-631.42,0.00015342,2]
[380955237,1755912726708,-400.0,0.00015342,2]
[380955239,1755912726718,-613.21,0.00015342,2]
[380955240,1755912726728,-931.59,0.00015342,2]
[380955241,1755912726739,-400.0,0.00015342,2]
[380955242,1755912726749,-585.39,0.00015342,2]
[380955243,1755912726759,-400.0,0.00015342,2]
[380955244,1755912726770,-821.68,0.00015342,2]
[380955245,1755912726780,-980.7,0.00015342,2]
[380955246,1755912726791,-464.46,0.00015342,2]
[380955247,1755912726802,-408.02,0.00015342,2]
[380955248,1755912726812,-400.0,0.00015342,2]
[380955249,1755912726822,-400.0,0.00015342,2]
[380955250,1755912726832,-840.52,0.00015342,2]
[380955251,1755912726843,-627.98,0.00015342,2]
[380955252,1755912726853,-468.81,0.00015342,2]
[380955253,1755912726864,-400.0,0.00015342,2]
[380955254,1755912726874,-160.78635539,0.00015342,2]
[380955255,1755912726886,-10013.33385602,0.00015345,2]
[380955256,1755912726897,-913.42,0.00015356,2]
[380955257,1755912726907,-500.0,0.00015361,2]
[380955258,1755912726918,-500.0,0.00015361,2]
[380955259,1755912726930,-500.0,0.00015361,2]
[380955260,1755912726940,-500.0,0.00015361,2]
[380955261,1755912726950,-1500.0,0.00015368,2]
[380955262,1755912726961,-206.566194,0.00015368,2]
[380955263,1755912726972,-595.49618311,0.00015368,2]
[380955264,1755912726982,-168.0,0.00015385,2]
[380955265,1755912726993,-16369.37823453,0.000154,2]
[380955266,1755912727004,-380.0,0.000154,2]
[380955267,1755912727014,-497.83486755,0.000154,2]